bitfinex-derivatives/quotes_ETHF0:USTF0_20250904
["timestamp","ask_amount","ask_price","bid_price","bid_amount"]
[1757013934821,0.53843,4270.4,4270.3,4.1843]
[1757013936630,0.42143,4270.4,4270.3,4.1843]
[1757013937532,0.42143,4270.4,4270.3,4.60574]
[1757013937731,0.42143,4270.4,4270.3,4.1843]
[1757013939032,1.15873,4270.4,4270.3,3.4215]
[1757013939233,0.7172,4270.5,4270.1,1.0]
[1757013939234,1.15875,4270.2,4270.1,1.0]
[1757013940030,1.15875,4270.2,4270.1,1.2137]
[1757013940335,1.15875,4270.2,4270.1,1.0]
[1757013940733,1.15875,4270.2,4270.1,1.2137]
[1757013941726,1.15875,4270.2,4270.1,1.4259]
[1757013941931,0.42144,4270.3,4270.1,1.7375]
[1757013942132,0.42144,4270.3,4270.2,0.7375]
[1757013942133,0.42143,4270.3,4270.2,0.7375]
[1757013942639,1.15873,4270.3,4270.2,0.4259]
[1757013942937,1.15873,4270.3,4270.2,0.7375]
[1757013943738,0.95043,4270.3,4270.2,0.7375]
[1757013944039,0.42143,4270.4,4270.3,0.7375]
[1757013944434,0.95043,4270.4,4270.3,0.7375]
[1757013945132,0.74043,4270.4,4270.3,0.7375]
[1757013945540,0.95043,4270.4,4270.3,0.7375]
[1757013949938,0.9645,4270.5,4270.4,1.11933]
[1757013950146,0.9645,4270.5,4270.4,1.35833]
[1757013951634,1.1729,4270.5,4270.4,0.9369]
[1757013951835,1.91142,4270.5,4270.4,1.35833]
[1757013952047,1.15225,4270.2,4270.1,1.2095]
[1757013955950,1.15225,4270.2,4270.1,1.408]
[1757013956147,0.73855,4270.2,4270.1,1.6979]
[1757013956343,0.73855,4270.2,4270.1,1.9379]
[1757013956851,0.94695,4270.2,4270.1,1.9379]
[1757013958251,0.73855,4270.2,4270.1,1.9379]
[1757013958450,0.94695,4270.2,4270.1,1.9379]
[1757013959948,1.15225,4270.2,4270.1,1.648]
[1757013960546,1.15225,4270.2,4270.1,1.9379]
[1757013962149,1.15225,4270.2,4270.1,5.1457]
[1757013962748,0.73855,4270.2,4270.1,5.1457]
[1757013962944,0.42145,4270.2,4270.1,5.1457]
[1757013963365,0.73855,4270.2,4270.1,5.1457]
[1757013963757,0.94695,4270.2,4270.1,5.1457]
[1757013963958,1.15225,4270.2,4270.1,5.1457]
[1757013964764,0.73855,4270.2,4270.1,4.9057]
[1757013964965,0.73855,4270.2,4270.1,5.1447]
[1757013967166,0.42145,4270.2,4270.1,5.1447]
[1757013967465,0.94695,4270.2,4270.1,5.1447]
[1757013968360,1.15225,4270.2,4270.1,1.0]
[1757013969164,1.15225,4270.2,4270.1,1.2095]
[1757013969361,1.15225,4270.2,4270.1,1.6979]
[1757013975173,1.52135,4270.2,4270.1,1.6979]
[1757013977076,1.10765,4270.2,4270.1,1.6979]
[1757013977279,0.79055,4270.2,4270.1,1.6979]
[1757013977575,0.79055,4270.2,4270.1,4.9057]
[1757013977576,1.31605,4270.2,4270.1,4.9057]
[1757013978768,1.51015,4270.2,4270.1,4.9057]
[1757013979871,0.3691,4270.2,4270.1,5.56133]
[1757013980172,3.73,4271.4,4270.4,1.05356]
[1757013980372,0.42136,4271.1,4270.8,2.51008487]
[1757013980675,4.62209,4272.0,4271.0,5.29650487]
[1757013980976,0.72963,4271.4,4271.1,2.32770487]
[1757013981169,0.42133,4271.4,4271.2,2.08870487]
[1757013981373,0.42133,4271.4,4271.3,0.239]
[1757013981679,0.7296,4271.7,4271.3,0.66033]
[1757013981879,0.42131,4271.6,4271.3,2.74903487]
[1757013982179,0.3083,4272.4,4271.7,0.42129]
[1757013982386,0.3083,4271.9,4271.8,0.239]
[1757013982674,0.3083,4271.9,4271.8,3.4468]
[1757013982880,0.3083,4272.4,4271.8,3.4468]
[1757013983075,0.3083,4272.4,4272.3,3.2078]
[1757013983378,0.3083,4272.4,4272.3,3.4478]
[1757013983576,0.3083,4272.7,4272.5,0.42121]
[1757013983774,0.3083,4272.9,4272.6,0.6602]
[1757013984082,0.3083,4272.9,4272.8,3.2078]
[1757013984279,0.3083,4272.9,4272.8,3.4478]
[1757013984478,0.4248,4273.0,4272.8,3.86898]
[1757013984982,0.3083,4273.2,4272.8,3.86898]
[1757013985181,0.3083,4273.1,4272.8,3.86898]
[1757013985782,0.3083,4273.1,4272.8,3.4478]
[1757013985969,0.3083,4273.1,4272.8,3.86898]
[1757013986274,0.3304,4273.5,4272.8,3.86898]
[1757013986480,0.94333,4273.4,4273.3,3.2078]
[1757013986781,0.94333,4273.4,4273.3,3.4478]
[1757013987181,1.13743,4273.4,4273.3,3.4478]
[1757013987783,3.2078,4274.2,4273.5,0.42111]
[1757013988082,0.3083,4274.3,4274.1,0.42106]
[1757013988278,0.3083,4274.3,4274.2,3.4478]
[1757013989679,1.05224,4275.8,4274.2,3.4478]
[1757013989680,0.7293,4274.8,4274.2,3.4478]
[1757013989880,1.23605045,4275.8,4274.7,3.2078]
[1757013989881,0.3304,4275.0,4274.7,3.2078]
[1757013990083,0.42096,4275.1,4274.8,0.66098]
[1757013990284,0.72926,4275.1,4274.8,0.66098]
[1757013990780,0.3083,4275.1,4274.9,0.42098]
[1757013990983,0.1165,4275.5,4275.0,0.24]
[1757013991282,0.42088,4275.9,4275.4,3.2078]
[1757013991481,0.3083,4275.8,4275.5,0.24]
[1757013991671,0.4248,4276.0,4275.5,0.24]
[1757013991873,0.4248,4276.0,4275.9,3.2078]
[1757013992080,0.1165,4276.0,4275.9,3.4478]
[1757013992276,0.4248,4276.0,4275.9,3.4478]
[1757013992680,0.3083,4276.3,4276.0,0.42087]
[1757013992878,0.3083,4276.3,4276.1,0.24]
[1757013993381,0.3083,4276.3,4276.1,0.66085]
[1757013993578,0.3083,4276.3,4276.1,0.24]
[1757013994175,0.42085,4276.3,4276.1,0.24]
[1757013994378,0.3083,4276.2,4276.1,0.24]
[1757013995284,0.5222,4276.2,4276.1,0.24]
[1757013995878,0.3083,4276.1,4275.9,3.2078]
[1757013996078,0.3083,4276.1,4276.0,0.239]
[1757013996785,0.42086,4276.2,4276.0,0.239]
[1757013997289,0.3083,4276.1,4276.0,0.239]
[1757013998287,0.3083,4276.4,4276.0,0.239]
[1757013998481,0.1165,4277.0,4276.4,0.42083]
[1757013998688,0.7163,4276.9,4276.8,3.2078]
[1757013998986,0.7163,4276.9,4276.8,3.4468]
[1757014000086,0.5222,4276.9,4276.8,3.4468]
[1757014000385,0.7163,4276.9,4276.8,3.4468]
[1757014000777,0.7163,4276.9,4276.8,3.2078]
[1757014000978,4.7163,4276.9,4276.8,3.2078]
[1757014001189,4.7163,4276.9,4276.8,3.4468]
[1757014004982,0.7163,4276.9,4276.8,3.4468]
[1757014007587,0.1165,4277.5,4276.9,0.0016]
[1757014007785,0.4213,4277.5,4277.4,0.0016]
[1757014007986,0.6174,4277.5,4277.4,0.2406]
[1757014009094,0.8131,4277.5,4277.4,0.2406]
[1757014010088,0.8131,4277.5,4277.4,0.66133]
[1757014010287,0.8131,4277.5,4277.4,0.2406]
[1757014011388,0.8131,4277.5,4277.4,0.0016]
[1757014011593,0.8131,4277.5,4277.4,0.2398]
[1757014012590,0.8131,4277.5,4277.3,3.2078]
[1757014012791,0.3011,4277.4,4277.3,3.2078]
[1757014013092,0.6929,4277.4,4277.3,3.2078]
[1757014013495,0.6929,4277.4,4277.3,0.239]
[1757014013794,0.6929,4276.9,4276.8,3.2078]
[1757014013992,0.6929,4276.9,4276.8,3.4468]
[1757014016595,0.1202,4277.5,4276.8,3.4468]
[1757014016596,0.3011,4277.4,4277.3,0.0016]
[1757014016790,0.4972,4277.4,4277.3,3.4484]
[1757014016991,0.6929,4277.4,4277.3,3.4484]
[1757014017190,0.6929,4277.4,4277.3,3.4476]
[1757014017594,0.4972,4277.4,4277.3,3.4484]
[1757014017796,0.3011,4277.4,4277.3,3.86914]
[1757014017992,0.3011,4277.8,4277.4,0.0016]
[1757014018187,0.3011,4277.8,4277.3,3.4468]
[1757014018188,0.4972,4277.8,4277.7,0.0016]
[1757014018497,0.4972,4277.8,4277.7,0.2406]
[1757014018692,0.6929,4277.8,4277.7,0.2406]
[1757014019095,0.6929,4277.8,4277.7,0.2398]
[1757014019692,0.6929,4277.4,4277.3,3.2078]
[1757014019891,0.6929,4277.4,4277.3,3.4484]
[1757014020491,0.4972,4277.4,4277.3,3.4484]
[1757014020890,0.6929,4277.4,4277.3,3.4484]
[1757014021099,0.6929,4277.4,4277.3,3.2078]
[1757014021292,0.6929,4277.4,4277.3,0.239]
[1757014024002,0.3918,4276.8,4276.7,3.2078]
[1757014024199,0.6929,4276.8,4276.7,3.4468]
[1757014024697,0.6929,4276.8,4276.7,3.2086]
[1757014024994,0.6929,4276.8,4276.7,3.4476]
[1757014025196,0.6929,4276.8,4276.7,3.2078]
[1757014025501,0.6929,4276.8,4276.7,3.4468]
[1757014026196,0.6929,4276.8,4276.7,3.74476766]
[1757014028496,0.6929,4276.8,4276.7,3.74556766]
[1757014028697,0.1202,4277.0,4276.8,0.42079]
[1757014028901,0.4213,4277.0,4276.9,0.53776766]
[1757014030002,0.8131,4277.0,4276.9,0.29716766]
[1757014030194,0.8131,4277.0,4276.9,0.53616766]
[1757014030501,0.8131,4277.0,4276.9,0.53696766]
[1757014031395,0.4213,4277.0,4276.9,0.53776766]
[1757014032095,0.8131,4277.0,4276.9,0.53696766]
[1757014032300,0.8131,4277.0,4276.9,0.29796766]
[1757014032502,0.8131,4277.0,4276.9,0.53616766]
[1757014032703,0.8131,4277.0,4276.9,0.53776766]
[1757014032898,0.6174,4277.0,4276.9,0.53776766]
[1757014033201,0.4213,4277.0,4276.9,0.53776766]
[1757014034297,0.6174,4277.0,4276.9,0.53776766]
[1757014034498,0.8131,4277.0,4276.9,0.53696766]
[1757014034808,0.4213,4277.0,4276.9,0.53776766]
[1757014035499,0.3011,4277.9,4277.8,0.0016]
[1757014035696,0.4972,4277.9,4277.8,0.53776766]
[1757014036598,0.6929,4277.9,4277.8,0.53776766]
[1757014036804,0.6929,4277.9,4277.8,0.29716766]
[1757014036999,4.6929,4277.9,4277.8,0.29716766]
[1757014037192,0.3918,4277.7,4277.1,3.2078]
[1757014037397,0.3918,4277.3,4277.1,3.2078]
[1757014037598,0.6929,4277.2,4277.1,3.2078]
[1757014037801,0.6929,4277.2,4277.1,3.4468]
[1757014037999,0.6929,4277.2,4277.1,3.6526]
[1757014038506,0.3011,4277.2,4277.1,4.1365]
[1757014039299,0.1202,4277.5,4277.1,4.55727]
[1757014039606,0.3212,4277.4,4277.3,0.683]
[1757014039804,0.3212,4277.4,4277.3,0.922]
[1757014040500,0.3212,4277.9,4277.3,0.6313]
[1757014040806,0.531,4277.9,4277.8,0.3923]
[1757014041006,0.7331,4277.9,4277.8,0.6313]
[1757014041502,0.1165,4278.5,4277.8,0.922]
[1757014041704,0.3212,4278.4,4277.8,0.922]
[1757014041905,0.531,4278.2,4278.1,3.6001]
[1757014042208,0.531,4278.2,4278.1,3.8391]
[1757014042906,0.531,4278.2,4278.1,4.1298]
[1757014043507,0.531,4278.2,4278.1,3.8391]
[1757014043702,0.7331,4278.2,4278.1,3.8391]
[1757014046108,0.531,4278.2,4278.1,4.1298]
[1757014046898,0.3212,4278.2,4278.1,4.1298]
[1757014047305,0.531,4278.2,4278.1,4.1298]
[1757014047605,0.7331,4278.2,4278.1,3.8391]
[1757014048201,0.7331,4278.2,4278.1,4.1298]
[1757014048713,0.3212,4278.2,4278.1,4.1298]
[1757014049112,0.3212,4278.4,4278.1,4.13214388]
[1757014049312,0.3212,4278.4,4278.3,0.683]
[1757014049508,0.531,4278.4,4278.3,1.21504388]
[1757014049713,0.531,4278.4,4278.3,1.21499631]
[1757014050416,0.7331,4278.4,4278.3,0.92429631]
[1757014055417,0.7331,4278.4,4278.3,1.21499631]
[1757014056114,0.3212,4278.8,4278.7,0.42061]
[1757014056313,0.1265,4279.5,4278.8,1.1036]
[1757014056514,0.3212,4279.3,4278.8,1.39659631]
[1757014056710,0.3212,4279.3,4279.2,0.42056]
[1757014057012,0.1265,4279.5,4279.2,4.42279631]
[1757014057213,0.2098,4279.9,4279.8,0.1991]
[1757014057411,0.7331,4279.9,4279.8,3.93889631]
[1757014057611,0.7331,4279.9,4279.8,0.29299631]
[1757014058515,0.7331,4279.9,4279.8,0.49209631]
[1757014058716,0.531,4279.9,4279.8,0.68529631]
[1757014058918,0.531,4279.9,4279.8,0.97599631]
[1757014059220,0.7331,4279.9,4279.8,0.68529631]
[1757014059721,0.7331,4279.9,4279.8,0.73109631]
[1757014062219,0.3212,4280.4,4279.8,1.21499631]
[1757014062421,0.8596,4280.5,4280.4,0.1991]
[1757014062620,0.8596,4280.5,4280.4,0.49209631]
[1757014063016,0.8596,4280.5,4280.4,0.68529631]
[1757014063220,0.8596,4280.5,4280.4,0.68459918]
[1757014064325,0.8596,4280.5,4280.4,0.49135784]
[1757014064925,0.8596,4280.5,4280.4,0.68455784]
[1757014065130,0.6575,4280.5,4280.4,1.21425784]
[1757014065328,0.531,4280.5,4280.4,1.21429645]
[1757014065524,0.2098,4280.9,4280.8,0.3923]
[1757014065724,0.7331,4280.9,4280.8,0.68459645]
[1757014066831,0.531,4280.9,4280.8,0.97529645]
[1757014068729,0.3182,4281.2,4280.9,0.2975]
[1757014069028,0.7438,4281.2,4281.0,0.53129645]
[1757014069225,0.7438,4281.2,4281.1,0.29229645]
[1757014070129,0.7438,4281.2,4281.1,0.50249645]
[1757014072327,0.7438,4281.2,4281.1,0.29229645]
[1757014074233,0.7438,4281.2,4281.1,0.50249645]
[1757014074627,0.3182,4281.2,4281.1,1.41856645]
[1757014074826,0.5309,4281.2,4281.1,4.62636645]
[1757014075032,0.5309,4281.2,4281.1,4.62575564]
[1757014075430,0.3182,4281.7,4281.4,0.4084]
[1757014075630,0.8703,4282.0,4281.9,0.2102]
[1757014075938,0.8703,4282.0,4281.9,0.50188564]
[1757014076939,0.8703,4282.0,4281.9,0.70008564]
[1757014079235,0.8703,4282.0,4281.9,0.29168564]
[1757014080437,0.7438,4281.1,4281.0,4.0797]
[1757014080739,0.2127,4281.1,4281.0,4.49133358]
[1757014081232,0.7438,4281.1,4281.0,3.418]
[1757014081540,0.4256,4281.0,4280.9,0.7189]
[1757014081742,0.5481,4281.5,4281.4,0.2102]
[1757014081941,0.5481,4281.5,4281.4,0.7189]
[1757014082239,0.8663,4281.5,4281.4,0.7189]
[1757014082435,0.7438,4281.5,4281.4,0.7189]
[1757014082737,0.8703,4282.0,4281.9,0.7189]
[1757014082942,0.7438,4282.0,4281.9,0.7189]
[1757014086339,0.2127,4282.0,4281.9,0.7189]
[1757014087937,0.8663,4282.0,4281.9,0.4084]
[1757014088242,0.8663,4282.0,4281.9,0.239]
[1757014088634,0.8663,4282.0,4281.9,0.4492]
[1757014088831,0.3182,4281.9,4281.6,3.5183]
[1757014089035,0.7438,4281.8,4281.7,0.7597]
[1757014089230,0.7438,4281.8,4281.6,3.2078]
[1757014089431,0.7438,4281.7,4281.6,0.239]
[1757014089834,0.7438,4281.7,4281.0,0.12]
[1757014090040,0.3182,4281.6,4281.1,0.239]
[1757014090343,0.7438,4281.2,4281.1,0.9579]
[1757014091538,0.1225,4281.0,4280.8,3.2078]
[1757014091743,0.4256,4280.9,4280.5,3.4468]
[1757014092044,0.7438,4280.8,4280.7,0.2102]
[1757014092633,0.3182,4280.7,4280.0,3.5183]
[1757014092838,0.7438,4280.1,4280.0,3.2078]
[1757014094547,0.7438,4280.1,4280.0,3.418]
[1757014095248,0.7438,4280.1,4280.0,0.2102]
[1757014096146,0.8663,4279.5,4279.4,3.418]
[1757014096648,0.8663,4279.5,4279.4,3.2078]
[1757014097345,0.8663,4279.5,4279.0,0.3105]
[1757014097646,0.8663,4279.5,4278.9,0.2959]
[1757014097851,0.7082,4278.9,4278.8,0.4516]
[1757014098053,0.7082,4278.9,4278.8,0.2126]
[1757014100150,0.3166,4278.8,4278.5,3.5037]
[1757014100353,0.3916,4278.6,4278.5,3.7163]
[1757014100649,0.7082,4278.6,4278.5,3.9093]
[1757014101550,0.7082,4278.6,4278.5,0.7015]
[1757014101747,0.3166,4279.0,4278.9,0.4056]
[1757014101950,0.1955,4279.0,4278.9,0.7015]
[1757014102452,3.4468,4279.7,4279.6,0.7015]
[1757014102453,3.7199,4279.7,4279.6,0.7015]
[1757014102748,0.7082,4279.7,4279.6,0.7015]
[1757014105552,0.7082,4279.7,4279.2,0.239]
[1757014105752,0.7082,4279.1,4279.0,3.4204]
[1757014105949,0.7082,4279.1,4279.0,3.9093]
[1757014106250,0.1955,4279.1,4279.0,4.0271]
[1757014106449,0.1225,4280.0,4279.3,0.4056]
[1757014106450,0.239,4279.9,4279.3,0.4056]
[1757014106655,3.2078,4280.2,4279.1,0.2959]
[1757014106656,0.3166,4280.1,4279.9,0.2959]
[1757014106858,0.1955,4280.1,4280.0,0.8193]
[1757014107253,0.5121,4280.1,4280.0,0.8193]
[1757014107454,0.7082,4280.1,4280.0,0.7015]
[1757014107950,0.7082,4280.1,4280.0,0.4056]
[1757014108159,0.7082,4280.1,4279.8,0.4205]
[1757014108361,0.3916,4280.1,4280.0,0.4056]
[1757014108554,0.1955,4280.1,4280.0,0.7015]
[1757014108755,0.7082,4280.1,4280.0,0.4056]
[1757014108951,0.437,4281.0,4280.5,0.4137]
[1757014109150,0.1955,4281.0,4280.9,0.7015]
[1757014109559,0.5121,4281.0,4280.9,0.7015]
[1757014110155,0.7082,4281.0,4280.9,0.7015]
[1757014110356,0.3166,4280.9,4280.5,0.2959]
[1757014110560,0.7082,4280.6,4280.5,0.5085]
[1757014110762,0.7082,4280.6,4280.5,0.2126]
[1757014110963,0.512,4280.5,4280.2,3.2078]
[1757014111155,0.3916,4280.3,4280.2,3.2078]
[1757014111363,0.7082,4280.3,4280.2,3.2078]
[1757014113055,0.3166,4280.2,4279.5,3.2078]
[1757014113365,0.1955,4279.6,4279.5,3.9093]
[1757014114462,0.7082,4279.6,4279.5,3.4204]
[1757014114663,0.7082,4279.6,4279.5,3.9093]
[1757014115778,0.3166,4280.4,4279.6,0.2959]
[1757014117358,0.7082,4279.7,4279.6,0.7015]
[1757014117565,0.3916,4279.7,4279.5,3.2078]
[1757014117864,0.7082,4279.6,4279.5,3.2078]
[1757014118051,0.7082,4279.6,4279.1,0.2959]
[1757014118365,0.1955,4279.2,4279.1,0.7015]
[1757014118563,0.7082,4279.2,4279.1,0.4056]
[1757014118959,0.1204,4279.5,4279.1,0.7015]
[1757014119160,3.4468,4279.9,4279.2,0.2959]
[1757014119365,0.7082,4279.7,4279.6,0.2126]
[1757014119763,0.7082,4279.7,4279.2,0.2959]
[1757014120265,0.3916,4279.3,4279.2,0.2126]
[1757014120561,3.916,4279.3,4279.2,0.2126]
[1757014121267,3.916,4279.3,4278.8,0.2959]
[1757014123163,0.7082,4279.2,4279.1,0.2126]
[1757014123567,0.7082,4279.2,4279.1,0.5085]
[1757014123762,0.3166,4279.1,4278.5,0.5349]
[1757014124066,3.2078,4279.3,4278.5,0.7624]
[1757014124267,0.7082,4279.2,4279.1,0.4056]
[1757014124468,0.7082,4279.2,4279.1,0.7015]
[1757014125466,0.5121,4279.6,4279.5,0.4056]
[1757014125672,0.5121,4279.6,4279.5,0.7015]
[1757014125871,0.7082,4279.6,4279.5,0.7015]
[1757014126069,0.7082,4279.3,4279.2,0.5085]
[1757014126371,0.7082,4278.9,4278.8,0.2126]
[1757014127068,0.7082,4278.9,4278.8,0.7015]
[1757014129372,0.7082,4278.9,4278.8,0.2126]
[1757014129562,0.7082,4278.9,4278.8,0.7256]
[1757014130380,0.3072,4279.2,4278.9,0.3191]
[1757014130674,0.5462,4279.5,4279.2,0.7242]
[1757014130883,0.239,4279.5,4279.3,0.3191]
[1757014131178,1.0592,4279.5,4279.4,0.7242]
[1757014131770,1.0592,4279.5,4279.0,0.3191]
[1757014132776,0.3072,4279.4,4278.5,0.4436]
[1757014132982,0.1979,4278.6,4278.5,0.8487]
[1757014133179,0.3568,4279.5,4278.8,0.4051]
[1757014133372,0.3072,4279.4,4278.9,0.3191]
[1757014133576,0.3952,4279.4,4279.3,0.2112]
[1757014133775,0.7024,4279.4,4279.3,0.2112]
[1757014134378,0.7024,4279.4,4279.0,0.3191]
[1757014134882,0.7024,4279.4,4279.3,0.2112]
[1757014135579,0.9414,4279.4,4279.0,0.3191]
[1757014135783,0.9414,4279.4,4278.6,0.3191]
[1757014139083,0.9414,4279.4,4279.3,0.7242]
[1757014139279,0.9414,4279.4,4278.6,0.3191]
[1757014139988,0.7024,4279.4,4279.3,0.7242]
[1757014140285,0.9414,4279.4,4278.9,0.3191]
[1757014140474,0.9414,4279.4,4278.6,0.3191]
[1757014140878,0.9414,4279.4,4279.3,0.2112]
[1757014141388,0.9414,4279.4,4279.3,0.7242]
[1757014142283,0.5051,4279.4,4279.3,0.7242]
[1757014142484,0.7024,4279.4,4279.3,0.7242]
[1757014143081,3.2078,4279.8,4279.4,0.3191]
[1757014143082,0.3072,4279.7,4279.4,0.3191]
[1757014143288,3.2078,4279.8,4279.7,0.7242]
[1757014143991,3.9102,4279.8,4279.7,0.7242]
[1757014144182,3.2078,4279.8,4279.7,0.7242]
[1757014144479,0.7024,4280.2,4280.1,0.5303]
[1757014144685,0.9414,4280.2,4280.1,0.7242]
[1757014145191,0.7024,4280.2,4280.1,0.7242]
[1757014147290,3.2078,4280.3,4280.1,0.4051]
[1757014147483,0.3072,4280.6,4280.2,0.4051]
[1757014147685,3.2078,4280.9,4280.6,0.3191]
[1757014147888,3.4057,4280.9,4280.8,0.7242]
[1757014148081,3.4057,4280.9,4280.5,0.1245]
[1757014148082,3.9102,4280.9,4280.4,0.3191]
[1757014148286,3.9102,4280.9,4280.0,2.21320487]
[1757014148591,0.7024,4280.8,4280.7,0.2112]
[1757014149088,0.5051,4280.8,4280.7,0.7242]
[1757014149287,0.1979,4280.8,4280.7,0.7242]
[1757014149492,0.7024,4280.8,4280.7,0.7242]
[1757014151291,0.1979,4280.8,4280.7,0.7242]
[1757014152093,0.3072,4281.0,4280.8,0.3191]
[1757014152292,0.5051,4281.0,4280.9,0.4051]
[1757014152494,0.5051,4281.0,4280.9,0.7242]
[1757014152685,0.1979,4281.0,4280.9,0.7242]
[1757014152994,3.2078,4281.4,4281.3,0.7242]
[1757014153198,0.3072,4281.7,4281.4,0.3191]
[1757014153387,0.3072,4281.7,4281.0,3.3323]
[1757014153388,0.5051,4281.7,4281.6,0.7242]
[1757014154194,0.3952,4281.7,4281.6,0.2112]
[1757014154394,0.3952,4281.7,4281.6,0.7242]
[1757014154797,3.2078,4282.0,4281.7,0.3191]
[1757014155097,3.7129,4282.0,4281.9,0.7242]
[1757014155893,3.9102,4282.0,4281.9,0.7242]
[1757014156094,4.028,4282.0,4281.9,0.2112]
[1757014156694,3.9102,4282.0,4281.9,0.7242]
[1757014157100,4.028,4282.0,4281.9,0.7242]
[1757014160112,0.8202,4282.0,4281.9,0.7242]
[1757014160615,0.8202,4282.0,4281.9,0.2112]
[1757014161111,0.8202,4282.0,4281.9,0.5024]
[1757014161409,0.8202,4282.0,4281.5,3.3323]
[1757014161410,0.3976,4281.7,4281.6,0.5024]
[1757014161611,0.7182,4281.7,4281.6,0.7096]
[1757014161801,0.7182,4281.7,4281.5,3.3323]
[1757014161802,0.7182,4281.7,4281.2,0.2912]
[1757014162002,0.7182,4281.7,4281.6,0.2112]
[1757014162199,0.7182,4281.7,4281.6,0.5024]
[1757014162709,0.7182,4281.7,4281.6,0.7096]
[1757014166804,3.2078,4282.6,4281.6,0.4184]
[1757014166805,0.239,4282.4,4281.6,0.4184]
[1757014167001,0.239,4282.4,4281.7,0.2912]
[1757014167002,0.3206,4282.3,4281.7,0.2912]
[1757014167210,0.3206,4282.3,4282.2,0.2112]
[1757014167211,0.7182,4282.3,4282.2,0.2112]
[1757014167603,0.3976,4282.3,4281.6,0.2912]
[1757014167912,0.3206,4282.2,4281.6,0.2912]
[1757014168114,0.7182,4281.7,4281.6,0.7096]
[1757014170317,0.5152,4281.7,4281.6,0.7096]
[1757014170516,0.3206,4282.3,4281.7,0.2912]
[1757014170816,0.3206,4282.3,4282.2,0.5024]
[1757014170817,0.7182,4282.3,4282.2,0.5024]
[1757014172318,0.7182,4282.3,4282.2,0.2112]
[1757014174912,0.7182,4282.3,4281.5,3.3348]
[1757014175119,0.3206,4282.2,4281.6,0.2912]
[1757014175416,0.5152,4281.7,4281.6,0.7096]
[1757014175607,0.5152,4281.7,4281.6,1.12992]
[1757014175809,0.3206,4281.6,4281.5,3.2078]
[1757014176004,0.1186,4282.0,4281.3,0.4184]
[1757014176005,0.3206,4281.9,4281.3,0.4184]
[1757014176214,0.7182,4281.9,4281.8,0.2112]
[1757014176516,0.7182,4281.9,4281.8,0.5024]
[1757014176716,0.7182,4281.9,4281.8,0.7096]
[1757014176918,0.1946,4281.9,4281.8,0.4184]
[1757014177311,0.5152,4281.9,4281.8,0.4184]
[1757014177513,0.5152,4281.9,4281.8,0.7096]
[1757014178618,0.7182,4281.9,4281.8,0.7096]
[1757014180218,0.7182,4281.9,4281.8,1.1299]
[1757014180618,0.7182,4281.9,4281.8,0.7096]
[1757014181014,0.7182,4281.9,4281.8,1.1299]
[1757014182418,0.7182,4281.9,4281.8,0.7096]
[1757014183421,0.3976,4281.6,4281.5,2.37990487]
[1757014183721,0.7182,4281.6,4281.5,2.50903487]
[1757014183921,0.7182,4281.6,4281.5,3.21863487]
[1757014187023,0.7182,4281.6,4281.5,3.34563487]
[1757014187919,0.7182,4281.6,4281.5,2.79830487]
[1757014188224,0.7182,4281.6,4281.5,2.50710487]
[1757014188520,0.7182,4281.6,4281.5,3.24063487]
[1757014189522,0.7182,4281.6,4281.5,1.15193]
[1757014189924,0.7182,4281.6,4281.5,0.8591]
[1757014190723,0.1946,4281.6,4281.5,0.8591]
[1757014190925,0.4949,4281.6,4281.5,0.8591]
[1757014192724,0.9936,4282.0,4281.5,0.8591]
[1757014192921,0.9936,4282.0,4281.8,4.053]
[1757014193125,0.9936,4282.0,4281.9,0.7381]
[1757014193322,1.0824,4282.0,4281.9,0.7381]
[1757014193522,0.7096,4282.0,4281.9,0.7381]
[1757014195823,0.3003,4282.4,4282.0,0.1275]
[1757014196030,0.7096,4282.4,4282.3,0.7381]
[1757014196826,3.5081,4282.6,4282.4,0.3132]
[1757014197132,0.5066,4282.6,4282.5,0.7381]
[1757014198837,0.2063,4282.6,4282.5,0.8656]
[1757014199532,0.124,4282.5,4282.2,2.65259891]
[1757014199733,0.7096,4282.3,4282.2,0.7636]
[1757014199933,0.7096,4282.3,4282.2,1.39636]
[1757014200230,0.7096,4282.3,4282.0,2.10139891]
[1757014200436,0.7096,4282.1,4282.0,2.10139891]
[1757014200732,0.124,4282.5,4281.8,0.238]
[1757014200733,0.7096,4281.9,4281.8,0.9761]
[1757014200938,0.3003,4282.4,4282.0,0.42028]
[1757014201138,0.5066,4282.4,4282.3,0.7381]
[1757014201340,0.7096,4282.4,4282.3,0.4249]
[1757014201539,0.7096,4282.4,4282.3,0.2124]
[1757014202140,0.7096,4282.4,4282.3,0.5256]
[1757014203239,0.7096,4282.4,4282.3,0.7381]
[1757014203431,0.7096,4282.4,4282.3,1.15835]
[1757014204636,0.7096,4282.4,4282.3,0.7381]
[1757014205442,1.5,4282.7,4282.6,0.4249]
[1757014205644,1.5,4282.7,4282.6,0.7381]
[1757014205838,0.8794,4282.7,4282.6,0.7381]
[1757014206141,0.7096,4282.7,4282.2,0.3132]
[1757014206332,0.3003,4282.6,4282.1,0.65827]
[1757014206532,0.7096,4282.6,4282.5,0.5256]
[1757014206737,0.1178,4283.0,4282.0,0.7381]
[1757014206738,0.7096,4282.1,4282.0,0.7381]
[1757014207144,0.7096,4282.1,4282.0,0.8656]
[1757014207644,0.7096,4282.1,4282.0,1.28588]